[Event "POL-chT 2nd League-3 2020"]
[Site "Poronin"]
[Date "2020.09.08"]
[Round "4.23"]
[White "Markiewicz, Mateusz"]
[Black "Suliborski, Jakub"]
[Result "1/2-1/2"]
[ECO "B51"]
[WhiteElo "2037"]
[BlackElo "2114"]
[Annotator "ChessBase"]
[PlyCount "84"]
[EventDate "2020.09.05"]
[EventType "team-tourn"]
[EventCountry "POL"]
[SourceTitle "playchess.com"]
[Source "ChessBase"]
[SourceQuality "1"]
[TimeControl "40/5400+30:900+30"]

1. e4 {[%emt 0:02:06]} c5 {[%emt 0:00:00]} 2. Nf3 {[%emt 0:00:15]} d6 {[%emt 0:00:00]} 3. Bb5+ {[%emt 0:00:17]} Nd7 {[%emt 0:00:31]} 4. c3 {[%emt 0:00:16]} Ngf6 {[%emt 0:01:06]} 5. Qe2 {[%emt 0:00:10]} a6 {[%emt 0:01:09]} 6. Ba4 {[%emt 0:00:32]} b5 {[%emt 0:03:51]} 7. Bc2 {[%emt 0:00:14]} Bb7 {[%emt 0:01:25]} 8. d4 {[%emt 0:00:23]} cxd4 {[%emt 0:03:27]} 9. cxd4 {[%emt 0:00:11]} Qa5+ {[%emt 0:00:59]} 10. Bd2 {[%emt 0:03:02]} Qc7 {[%emt 0:00:11]} 11. Bd3 {[%emt 0:07:24]} e5 {[%emt 0:05:20]} 12. d5 {[%emt 0:00:53]} Be7 {[%emt 0:01:51]} 13. O-O {[%emt 0:01:07]} O-O {[%emt 0:00:16]} 14. Rc1 {[%emt 0:01:53]} Qb8 {[%emt 0:00:26]} 15. b4 {[%emt 0:02:23]} Nb6 {[%emt 0:03:08]} 16. Nc3 {[%emt 0:01:56]} Rc8 {[%emt 0:07:41]} 17. a4 {[%emt 0:04:33]} bxa4 {[%emt 0:04:36]} 18. Be3 {[%emt 0:00:31]} Bd8 {[%emt 0:00:55]} 19. Nd2 {[%emt 0:01:54]} Nfd7 {[%emt 0:06:20]} 20. Nc4 {[%emt 0:16:00]} Nxc4 {[%emt 0:01:11]} 21. Bxc4 {[%emt 0:00:02]} a5 {[%emt 0:03:59]} 22. b5 {[%emt 0:03:56]} Nc5 {[%emt 0:14:33]} 23. Bxc5 {[%emt 0:00:15]} Rxc5 {[%emt 0:00:06]} 24. Nxa4 {[%emt 0:00:08]} Rc8 {[%emt 0:00:04]} 25. b6 Bg5 {[%emt 0:01:44]} 26. Rc3 {[%emt 0:04:11]} f5 {[%emt 0:01:12]} 27. h4 {[%emt 0:11:40]} Bf6 {[%emt 0:01:40]} 28. Rac1 {[%emt 0:00:57]} Rf8 {[%emt 0:03:14]} 29. Bb5 {[%emt 0:03:35]} Bxh4 {[%emt 0:03:53]} 30. Rc7 {[%emt 0:08:27]} Bd8 {[%emt 0:02:23]} 31. Rxb7 {[%emt 0:03:56]} Qxb7 {[%emt 0:00:08]} 32. Bc6 {[%emt 0:00:07]} Qa6 {[%emt 0:00:05]} 33. Qxa6 {[%emt 0:00:14]} Rxa6 {[%emt 0:00:05]} 34. b7 {[%emt 0:00:08]} Bb6 {[%emt 0:14:15]} 35. Bb5 {[%emt 0:04:04]} Ra7 {[%emt 0:00:13]} 36. Bc6 {[%emt 0:05:22]} Bd4 {[%emt 0:02:12]} 37. exf5 {[%emt 0:00:14]} Rb8 {[%emt 0:02:01]} 38. Rb1 {[%emt 0:00:55]} Kf7 {[%emt 0:00:29]} 39. g4 {[%emt 0:03:14]} g6 {[%emt 0:01:18]} 40. fxg6+ {[%emt 0:00:00]} hxg6 {[%emt 0:00:00]} 41. Kf1 {[%emt 0:00:49]} Ke7 {[%emt 0:06:15]} 42. Ke2 {[%emt 0:00:24]} Kd8 {[%emt 0:00:34]} 1/2-1/2

[Event "POL-chT 2nd League-3 2020"]
[Site "Poronin"]
[Date "2020.09.08"]
[Round "4.24"]
[White "Rykala, Monika"]
[Black "Mirowska, Oliwia"]
[Result "1/2-1/2"]
[ECO "B07"]
[WhiteElo "1877"]
[BlackElo "1855"]
[Annotator "NA"]
[PlyCount "36"]
[EventDate "2020.09.05"]
[EventType "team-tourn"]
[EventCountry "POL"]
[SourceTitle "playchess.com"]
[Source "ChessBase"]
[SourceQuality "1"]
[TimeControl "40/5400+30:900+30"]

1. d4 {[%emt 0:00:00]} d6 {[%emt 0:00:00]} 2. e4 {[%emt 0:00:00]} Nf6 {[%emt 0:00:00]} 3. Nc3 {[%emt 0:00:00]} e5 {[%emt 0:00:01]} 4. dxe5 {[%emt 0:00:00]} dxe5 {[%emt 0:00:11]} 5. Qxd8+ {[%emt 0:00:18]} Kxd8 {[%emt 0:00:00]} 6. Nf3 {[%emt 0:00:09]} Bd6 {[%emt 0:00:44]} 7. Bc4 {[%emt 0:01:06]} Be6 {[%emt 0:00:28]} 8. Bxe6 {[%emt 0:01:19]} fxe6 {[%emt 0:00:07]} 9. Be3 {[%emt 0:02:52]} Ke7 {[%emt 0:00:50]} 10. O-O-O {[%emt 0:00:45]} Nbd7 {[%emt 0:00:40]} 11. a3 {[%emt 0:04:54]} a6 {[%emt 0:01:35]} 12. Nd2 {[%emt 0:13:05]} b5 {[%emt 0:00:53]} 13. f3 {[%emt 0:03:44]} Rhb8 {[%emt 0:03:15]} 14. Ne2 {[%emt 0:03:26]} a5 {[%emt 0:04:02]} 15. Rhf1 {[%emt 0:04:11]} a4 {[%emt 0:01:49]} 16. c3 {[%emt 0:12:25]} Nc5 {[%emt 0:04:28]} 17. Bxc5 {[%emt 0:02:59]} Bxc5 {[%emt 0:00:15]} 18. Kc2 {[%emt 0:01:15]} Rd8 {[%emt 0:04:45]} 1/2-1/2

[Event "POL-chT 2nd League-3 2020"]
[Site "Poronin"]
[Date "2020.09.09"]
[Round "5.18"]
[White "Trusz, Julia"]
[Black "Pluta, Natalia"]
[Result "1-0"]
[ECO "D30"]
[WhiteElo "1675"]
[BlackElo "1844"]
[Annotator "NA RC"]
[PlyCount "67"]
[EventDate "2020.09.05"]
[EventType "team-tourn"]
[EventCountry "POL"]
[SourceTitle "playchess.com"]
[Source "ChessBase"]
[SourceQuality "1"]
[TimeControl "40/5400+30:900+30"]

1. d4 {[%emt 0:00:00]} d5 {[%emt 0:00:00]} 2. c4 {[%emt 0:00:00]} e6 {[%emt 0:00:00]} 3. Nf3 {[%emt 0:00:05]} c6 {[%emt 0:00:00]} 4. Qc2 {[%emt 0:00:35]} Nf6 {[%emt 0:00:25]} 5. Nbd2 {[%emt 0:00:59]} Nbd7 {[%emt 0:00:53]} 6. g3 {[%emt 0:00:42]} Bd6 {[%emt 0:02:00]} 7. Bg2 {[%emt 0:01:39]} e5 {[%emt 0:06:06]} 8. dxe5 {[%emt 0:06:56]} Nxe5 {[%emt 0:00:16]} 9. Nxe5 {[%emt 0:00:41]} Bxe5 {[%emt 0:00:10]} 10. Nf3 {[%emt 0:00:30]} Bd6 {[%emt 0:01:05]} 11. O-O {[%emt 0:01:34]} O-O {[%emt 0:01:23]} 12. b3 {[%emt 0:03:26]} Qe7 {[%emt 0:05:18]} 13. Bb2 {[%emt 0:03:26]} Ba3 {[%emt 0:02:41]} 14. Bxa3 {[%emt 0:13:42]} Qxa3 {[%emt 0:00:24]} 15. cxd5 {[%emt 0:02:14]} cxd5 {[%emt 0:03:49]} 16. Nd4 {[%emt 0:03:33]} Bd7 {[%emt 0:03:47]} 17. Rfd1 {[%emt 0:06:38]} Rac8 {[%emt 0:05:51]} 18. Qd2 {[%emt 0:06:26]} Rfe8 {[%emt 0:04:45]} 19. Rac1 {[%emt 0:10:41]} Qa6 {[%emt 0:23:12]} 20. e3 {[%emt 0:14:32]} Bg4 {[%emt 0:01:48]} 21. Bf3 {[%emt 0:01:35]} h5 {[%emt 0:18:36]} 22. h4 {[%emt 0:03:34]} Ne4 {[%emt 0:01:04]} 23. Qb2 {[%emt 0:07:42]} Qf6 {[%emt 0:03:42]} 24. Bxg4 {[%emt 0:02:21]} hxg4 {[%emt 0:00:13]} 25. Rc2 {[%emt 0:01:07]} Rxc2 {[%emt 0:03:36]} 26. Qxc2 {[%emt 0:00:16]} g5 {[%emt 0:00:20]} 27. hxg5 {[%emt 0:00:58]} Nxg5 {[%emt 0:00:49]} 28. Qf5 {[%emt 0:01:29]} Qh6 {[%emt 0:06:48]} 29. Qxg4 {[%emt 0:01:29]} Re4 {[%emt 0:00:08]} 30. f4 {[%emt 0:01:02]} f6 {[%emt 0:00:38]} 31. fxg5 {[%emt 0:01:47]} fxg5 {[%emt 0:00:09]} 32. Qc8+ {[%emt 0:00:26]} Kf7 {[%emt 0:00:05]} 33. Qxb7+ {[%emt 0:00:14]} Ke8 {[%emt 0:00:12]} 34. Rc1 {[%emt 0:00:28]} 1-0

[Event "POL-chT 2nd League-3 2020"]
[Site "Poronin"]
[Date "2020.09.10"]
[Round "6.5"]
[White "Szolc, Grzegorz"]
[Black "Krawiec, Grzegorz"]
[Result "1-0"]
[ECO "A45"]
[WhiteElo "2036"]
[BlackElo "1824"]
[Annotator "RC"]
[PlyCount "97"]
[EventDate "2020.09.05"]
[EventType "team-tourn"]
[EventCountry "POL"]
[SourceTitle "playchess.com"]
[Source "ChessBase"]
[SourceQuality "1"]
[TimeControl "40/5400+30:900+30"]

1. d4 {[%emt 0:00:00]} Nf6 {[%emt 0:00:03]} 2. Bf4 {[%emt 0:00:00]} c5 {[%emt 0:01:26]} 3. d5 {[%emt 0:02:47]} Qb6 {[%emt 0:02:18]} 4. Nc3 {[%emt 0:00:24]} Qxb2 {[%emt 0:04:32]} 5. Bd2 {[%emt 0:00:16]} Qb6 {[%emt 0:00:05]} 6. e4 {[%emt 0:00:35]} d6 {[%emt 0:00:04]} 7. Rb1 {[%emt 0:04:08]} Qc7 {[%emt 0:05:16]} 8. f4 {[%emt 0:07:30]} e6 {[%emt 0:02:25]} 9. dxe6 {[%emt 0:38:07]} Bxe6 {[%emt 0:18:43]} 10. Nf3 {[%emt 0:03:57]} Be7 {[%emt 0:01:55]} 11. f5 {[%emt 0:12:32]} Bd7 {[%emt 0:01:23]} 12. Bc4 {[%emt 0:00:55]} O-O {[%emt 0:01:03]} 13. O-O {[%emt 0:01:01]} Bc6 {[%emt 0:03:51]} 14. Re1 {[%emt 0:01:35]} a6 {[%emt 0:07:23]} 15. a4 {[%emt 0:01:23]} b6 {[%emt 0:00:27]} 16. Bf4 {[%emt 0:05:13]} Bb7 {[%emt 0:01:26]} 17. e5 {[%emt 0:07:16]} dxe5 {[%emt 0:02:41]} 18. Bxe5 {[%emt 0:00:21]} Qd8 {[%emt 0:00:38]} 19. Qxd8 {[%emt 0:00:47]} Bxd8 {[%emt 0:00:10]} 20. Bd6 {[%emt 0:00:30]} Re8 {[%emt 0:00:58]} 21. Ne5 {[%emt 0:02:03]} Rxe5 {[%emt 0:02:50]} 22. Bxe5 {[%emt 0:00:43]} Nbd7 {[%emt 0:00:27]} 23. Bd6 {[%emt 0:01:41]} h6 {[%emt 0:01:45]} 24. Be7 {[%emt 0:03:34]} Ne4 {[%emt 0:05:59]} 25. Nxe4 {[%emt 0:03:40]} Bxe7 {[%emt 0:00:06]} 26. Rbd1 {[%emt 0:00:25]} Ne5 {[%emt 0:00:49]} 27. Bd5 {[%emt 0:00:53]} Bxd5 {[%emt 0:02:24]} 28. Rxd5 {[%emt 0:00:02]} Bh4 {[%emt 0:00:08]} 29. Rb1 {[%emt 0:01:19]} Nc4 {[%emt 0:00:13]} 30. g3 {[%emt 0:00:35]} Bd8 {[%emt 0:01:37]} 31. Re1 {[%emt 0:00:37]} Bc7 {[%emt 0:00:13]} 32. f6 {[%emt 0:00:31]} Re8 {[%emt 0:03:16]} 33. Rdd1 {[%emt 0:00:34]} Kf8 {[%emt 0:06:10]} 34. fxg7+ {[%emt 0:00:27]} Kxg7 {[%emt 0:00:05]} 35. Nf2 {[%emt 0:00:32]} Rxe1+ {[%emt 0:04:10]} 36. Rxe1 {[%emt 0:00:01]} Be5 {[%emt 0:00:05]} 37. Kg2 {[%emt 0:00:54]} f6 {[%emt 0:00:11]} 38. Nd3 {[%emt 0:00:33]} Bd4 {[%emt 0:00:38]} 39. Kf3 {[%emt 0:00:31]} Na3 {[%emt 0:00:41]} 40. Re2 {[%emt 0:00:00]} Nb1 {[%emt 0:00:00]} 41. Re6 {[%emt 0:04:32]} c4 {[%emt 0:01:05]} 42. Nb4 {[%emt 0:03:31]} Na3 {[%emt 0:03:40]} 43. Re2 {[%emt 0:02:41]} b5 {[%emt 0:00:33]} 44. axb5 {[%emt 0:02:32]} axb5 {[%emt 0:00:11]} 45. Nd5 {[%emt 0:00:37]} Nb1 {[%emt 0:04:50]} 46. Nc7 {[%emt 0:01:59]} Bb2 {[%emt 0:03:43]} 47. Nxb5 {[%emt 0:00:18]} Nc3 {[%emt 0:00:01]} 48. Nxc3 {[%emt 0:00:19]} Bxc3 {[%emt 0:00:02]} 49. Re4 {[%emt 0:00:13]} 1-0

[Event "POL-chT 2nd League-3 2020"]
[Site "Poronin"]
[Date "2020.09.10"]
[Round "6.12"]
[White "Rykala, Monika"]
[Black "Chmiel, Dominika"]
[Result "1-0"]
[ECO "E91"]
[WhiteElo "1877"]
[BlackElo "2023"]
[Annotator "RC"]
[PlyCount "97"]
[EventDate "2020.09.05"]
[EventType "team-tourn"]
[EventCountry "POL"]
[SourceTitle "playchess.com"]
[Source "ChessBase"]
[SourceQuality "1"]
[TimeControl "40/5400+30:900+30"]

1. d4 {[%emt 0:00:00]} Nf6 {[%emt 0:00:00]} 2. c4 {[%emt 0:00:00]} g6 {[%emt 0:00:00]} 3. Nc3 {[%emt 0:00:00]} Bg7 {[%emt 0:00:03]} 4. e4 {[%emt 0:00:00]} d6 {[%emt 0:00:06]} 5. Nf3 {[%emt 0:00:00]} O-O {[%emt 0:00:12]} 6. Be2 {[%emt 0:00:00]} Nc6 {[%emt 0:00:57]} 7. d5 {[%emt 0:00:59]} Ne5 {[%emt 0:00:16]} 8. Nxe5 {[%emt 0:02:44]} dxe5 {[%emt 0:00:06]} 9. O-O {[%emt 0:01:14]} Ne8 {[%emt 0:01:34]} 10. Kh1 {[%emt 0:05:38]} f5 {[%emt 0:04:34]} 11. f4 {[%emt 0:06:10]} exf4 {[%emt 0:10:49]} 12. exf5 {[%emt 0:01:28]} Bxf5 {[%emt 0:02:41]} 13. Bxf4 {[%emt 0:02:09]} e5 {[%emt 0:01:29]} 14. Be3 {[%emt 0:01:55]} Nd6 {[%emt 0:11:07]} 15. Qd2 {[%emt 0:05:23]} Qh4 16. Qe1 {[%emt 0:08:52]} Qe7 {[%emt 0:22:57]} 17. Rd1 {[%emt 0:08:01]} b6 {[%emt 0:13:06]} 18. Qd2 {[%emt 0:07:13]} Rf7 {[%emt 0:09:03]} 19. a3 {[%emt 0:02:17]} a5 {[%emt 0:00:32]} 20. b4 {[%emt 0:05:22]} axb4 {[%emt 0:00:40]} 21. axb4 {[%emt 0:00:00]} Nb7 {[%emt 0:10:39]} 22. Nb5 {[%emt 0:02:39]} Ra4 {[%emt 0:05:22]} 23. d6 {[%emt 0:08:59]} Nxd6 {[%emt 0:00:37]} 24. Nxd6 {[%emt 0:00:09]} Qxd6 {[%emt 0:00:54]} 25. Qxd6 {[%emt 0:00:07]} cxd6 {[%emt 0:00:04]} 26. Rxd6 {[%emt 0:00:38]} Rxb4 {[%emt 0:00:21]} 27. Rxb6 {[%emt 0:01:20]} Rxb6 {[%emt 0:03:09]} 28. Bxb6 {[%emt 0:00:01]} Rd7 {[%emt 0:00:46]} 29. Be3 {[%emt 0:06:06]} Rc7 {[%emt 0:00:53]} 30. c5 {[%emt 0:02:22]} Bf8 {[%emt 0:00:43]} 31. Rc1 {[%emt 0:00:18]} Be4 {[%emt 0:00:15]} 32. Kg1 {[%emt 0:00:52]} Kg7 {[%emt 0:00:30]} 33. Kf2 {[%emt 0:00:17]} Be7 {[%emt 0:00:20]} 34. Kg3 {[%emt 0:03:20]} Bf8 {[%emt 0:00:48]} 35. Bf3 {[%emt 0:00:20]} Bxf3 {[%emt 0:00:21]} 36. Kxf3 {[%emt 0:00:05]} Kf6 {[%emt 0:00:05]} 37. Ke4 {[%emt 0:00:26]} Ke6 {[%emt 0:00:05]} 38. Rc4 {[%emt 0:00:56]} Rc6 {[%emt 0:00:09]} 39. Rb4 {[%emt 0:05:22]} Bxc5 {[%emt 0:02:06]} 40. Rc4 {[%emt 0:00:00]} Kd6 {[%emt 0:00:00]} 41. Bxc5+ {[%emt 0:00:14]} Rxc5 {[%emt 0:00:08]} 42. Rxc5 {[%emt 0:00:04]} Kxc5 {[%emt 0:00:04]} 43. Kxe5 {[%emt 0:00:14]} Kc6 {[%emt 0:01:50]} 44. Kf6 {[%emt 0:03:22]} Kd6 {[%emt 0:00:42]} 45. Kg7 {[%emt 0:00:46]} Ke6 {[%emt 0:02:00]} 46. Kxh7 {[%emt 0:00:45]} Kf6 {[%emt 0:01:48]} 47. g4 {[%emt 0:01:38]} Kg5 {[%emt 0:03:05]} 48. h3 {[%emt 0:00:06]} Kf6 {[%emt 0:02:34]} 49. Kh6 {[%emt 0:00:13]} 1-0

[Event "POL-chT 2nd League-3 2020"]
[Site "Poronin"]
[Date "2020.09.10"]
[Round "6.17"]
[White "Glatty, Zbigniew"]
[Black "Kelm, Robert"]
[Result "0-1"]
[ECO "B83"]
[WhiteElo "1857"]
[BlackElo "1613"]
[Annotator "NA RC"]
[PlyCount "120"]
[EventDate "2020.09.05"]
[EventType "team-tourn"]
[EventCountry "POL"]
[SourceTitle "playchess.com"]
[Source "ChessBase"]
[SourceQuality "1"]
[TimeControl "40/5400+30:900+30"]

1. e4 {[%emt 0:00:00]} c5 {[%emt 0:00:31]} 2. Nf3 {[%emt 0:00:00]} e6 {[%emt 0:00:10]} 3. d4 {[%emt 0:00:00]} cxd4 {[%emt 0:00:07]} 4. Nxd4 {[%emt 0:00:00]} Nf6 {[%emt 0:00:07]} 5. Nc3 {[%emt 0:00:00]} d6 {[%emt 0:00:06]} 6. Be2 {[%emt 0:00:04]} Nc6 {[%emt 0:01:05]} 7. O-O {[%emt 0:01:31]} Be7 {[%emt 0:01:24]} 8. Kh1 {[%emt 0:00:10]} e5 {[%emt 0:06:09]} 9. Nb3 {[%emt 0:01:58]} Be6 {[%emt 0:03:20]} 10. Bf3 {[%emt 0:01:30]} a5 {[%emt 0:00:55]} 11. a4 {[%emt 0:13:29]} O-O {[%emt 0:01:04]} 12. Nd5 {[%emt 0:01:10]} Bxd5 {[%emt 0:14:47]} 13. exd5 {[%emt 0:00:09]} Nb8 {[%emt 0:00:05]} 14. c4 {[%emt 0:04:19]} Nbd7 {[%emt 0:02:04]} 15. Be2 {[%emt 0:14:51]} Ne4 {[%emt 0:09:15]} 16. Bd3 {[%emt 0:06:43]} Nec5 {[%emt 0:00:46]} 17. Be3 {[%emt 0:13:04]} b6 {[%emt 0:07:01]} 18. f4 {[%emt 0:05:32]} Nxb3 {[%emt 0:18:41]} 19. Qxb3 {[%emt 0:00:03]} exf4 {[%emt 0:00:06]} 20. Bxf4 {[%emt 0:01:24]} Nc5 {[%emt 0:01:39]} 21. Qd1 {[%emt 0:02:07]} Bf6 {[%emt 0:05:21]} 22. Ra2 {[%emt 0:03:17]} Ra7 {[%emt 0:00:49]} 23. b3 {[%emt 0:02:29]} g6 {[%emt 0:00:21]} 24. Raf2 {[%emt 0:01:11]} Bg7 {[%emt 0:00:05]} 25. Bc2 {[%emt 0:01:17]} Re8 {[%emt 0:07:26]} 26. Re1 {[%emt 0:01:24]} Be5 {[%emt 0:06:57]} 27. Rfe2 {[%emt 0:16:21]} f6 {[%emt 0:02:13]} 28. Rf1 {[%emt 0:03:32]} Bxf4 {[%emt 0:02:45]} 29. Rxf4 {[%emt 0:00:11]} Rae7 {[%emt 0:00:39]} 30. Rff2 {[%emt 0:00:38]} Re5 {[%emt 0:00:29]} 31. Kg1 {[%emt 0:01:20]} f5 {[%emt 0:01:44]} 32. g3 {[%emt 0:02:38]} Kg7 {[%emt 0:01:28]} 33. Qd2 {[%emt 0:00:48]} Qe7 {[%emt 0:01:04]} 34. Kf1 {[%emt 0:01:02]} Rxe2 {[%emt 0:01:10]} 35. Rxe2 {[%emt 0:00:06]} Qxe2+ {[%emt 0:00:05]} 36. Qxe2 {[%emt 0:00:04]} Rxe2 {[%emt 0:00:08]} 37. Kxe2 {[%emt 0:00:03]} Kf6 {[%emt 0:00:06]} 38. Ke3 {[%emt 0:01:11]} Ke5 {[%emt 0:00:17]} 39. Bd1 {[%emt 0:00:46]} Nd7 {[%emt 0:01:03]} 40. Be2 {[%emt 0:00:00]} Nc5 {[%emt 0:00:00]} 41. Bd1 {[%emt 0:01:53]} g5 {[%emt 0:00:34]} 42. Bc2 {[%emt 0:00:30]} Nb7 {[%emt 0:03:48]} 43. Bb1 {[%emt 0:00:55]} Nd8 {[%emt 0:00:07]} 44. Bc2 {[%emt 0:00:32]} h6 {[%emt 0:00:54]} 45. Bd1 {[%emt 0:01:38]} g4 {[%emt 0:01:05]} 46. Bc2 {[%emt 0:00:54]} Nf7 {[%emt 0:00:08]} 47. Bd3 {[%emt 0:04:01]} Ng5 {[%emt 0:00:51]} 48. Be2 {[%emt 0:00:35]} Nh3 {[%emt 0:02:39]} 49. Bf1 {[%emt 0:02:33]} f4+ {[%emt 0:03:38]} 50. Kd3 {[%emt 0:04:37]} fxg3 {[%emt 0:02:12]} 51. hxg3 {[%emt 0:00:21]} Nf2+ {[%emt 0:00:10]} 52. Ke3 {[%emt 0:01:19]} Nh1 {[%emt 0:00:30]} 53. Be2 {[%emt 0:00:32]} h5 {[%emt 0:00:09]} 54. Kd3 {[%emt 0:02:22]} Nxg3 {[%emt 0:00:51]} 55. Bd1 {[%emt 0:00:25]} Ne4 {[%emt 0:00:19]} 56. Ke3 {[%emt 0:00:18]} Nf6 {[%emt 0:01:20]} 57. Be2 {[%emt 0:01:17]} h4 {[%emt 0:00:20]} 58. Kd3 {[%emt 0:00:41]} h3 {[%emt 0:00:19]} 59. Bf1 {[%emt 0:00:14]} Nh5 {[%emt 0:00:07]} 60. Ke3 {[%emt 0:00:32]} Ng3 {[%emt 0:00:48]} 0-1

[Event "POL-chT 2nd League-3 2020"]
[Site "Poronin"]
[Date "2020.09.10"]
[Round "6.23"]
[White "Szydelko, Michal"]
[Black "Reichel, Lukasz"]
[Result "1-0"]
[ECO "B50"]
[WhiteElo "1877"]
[BlackElo "1755"]
[Annotator "NA RC"]
[PlyCount "43"]
[EventDate "2020.09.05"]
[EventType "team-tourn"]
[EventCountry "POL"]
[SourceTitle "playchess.com"]
[Source "ChessBase"]
[SourceQuality "1"]
[TimeControl "40/5400+30:900+30"]

1. e4 {[%emt 0:00:00]} c5 {[%emt 0:00:00]} 2. Nf3 {[%emt 0:00:11]} d6 {[%emt 0:00:00]} 3. c3 {[%emt 0:01:49]} Nf6 {[%emt 0:02:09]} 4. Bd3 {[%emt 0:00:48]} g6 {[%emt 0:03:40]} 5. h3 {[%emt 0:00:58]} Bg7 {[%emt 0:01:49]} 6. O-O {[%emt 0:00:08]} O-O {[%emt 0:00:09]} 7. Bc2 {[%emt 0:00:04]} Nc6 {[%emt 0:07:41]} 8. d4 {[%emt 0:00:24]} cxd4 {[%emt 0:11:13]} 9. cxd4 {[%emt 0:00:09]} d5 {[%emt 0:02:04]} 10. e5 {[%emt 0:00:57]} Ne4 {[%emt 0:00:52]} 11. Nc3 {[%emt 0:02:38]} Nxc3 {[%emt 0:19:31]} 12. bxc3 {[%emt 0:00:02]} f6 {[%emt 0:08:09]} 13. exf6 {[%emt 0:04:11]} Bxf6 {[%emt 0:04:28]} 14. Bh6 {[%emt 0:02:09]} Re8 {[%emt 0:02:05]} 15. Re1 {[%emt 0:21:56]} e5 {[%emt 0:03:15]} 16. dxe5 {[%emt 0:06:18]} Nxe5 {[%emt 0:00:11]} 17. Bb3 {[%emt 0:01:20]} Kh8 {[%emt 0:13:44]} 18. Bxd5 {[%emt 0:07:27]} Qc7 {[%emt 0:07:03]} 19. Ng5 {[%emt 0:03:02]} Bg7 {[%emt 0:10:25]} 20. Nf7+ {[%emt 0:05:11]} Qxf7 {[%emt 0:00:51]} 21. Bxf7 {[%emt 0:00:10]} Re7 {[%emt 0:00:36]} 22. Qd8+ {[%emt 0:00:15]} 1-0

[Event "POL-chT 2nd League-3 2020"]
[Site "Poronin"]
[Date "2020.09.11"]
[Round "7.11"]
[White "Kelm, Robert"]
[Black "Szydelko, Michal"]
[Result "1-0"]
[ECO "A14"]
[WhiteElo "1613"]
[BlackElo "1877"]
[Annotator "NA RC"]
[PlyCount "143"]
[EventDate "2020.09.05"]
[EventType "team-tourn"]
[EventCountry "POL"]
[SourceTitle "playchess.com"]
[Source "ChessBase"]
[SourceQuality "1"]
[WhiteTeam "RPW Okucia Budowlane LODZ"]
[BlackTeam "UKS GIECEK Radkow"]
[TimeControl "40/5400+30:900+30"]

1. Nf3 {[%emt 0:00:15]} Nf6 {[%emt 0:00:00]} 2. c4 {[%emt 0:00:27]} e6 {[%emt 0:00:15]} 3. g3 {[%emt 0:01:08]} d5 {[%emt 0:00:29]} 4. Bg2 {[%emt 0:00:12]} Be7 {[%emt 0:00:07]} 5. O-O {[%emt 0:00:12]} O-O {[%emt 0:00:06]} 6. d4 {[%emt 0:04:53]} dxc4 {[%emt 0:01:55]} 7. Qc2 {[%emt 0:01:35]} c5 {[%emt 0:07:20]} 8. Qxc4 {[%emt 0:04:36]} Nbd7 {[%emt 0:03:40]} 9. Nc3 {[%emt 0:05:08]} Nb6 {[%emt 0:08:58]} 10. Qd3 {[%emt 0:01:48]} Nbd5 {[%emt 0:15:01]} 11. a3 {[%emt 0:03:40]} cxd4 {[%emt 0:16:02]} 12. Qxd4 Nxc3 {[%emt 0:07:45]} 13. Qxc3 {[%emt 0:12:33]} Nd5 {[%emt 0:00:08]} 14. Qb3 {[%emt 0:00:05]} Qb6 {[%emt 0:05:13]} 15. Qxb6 {[%emt 0:01:28]} Nxb6 {[%emt 0:00:06]} 16. Be3 {[%emt 0:02:43]} Nc4 {[%emt 0:04:27]} 17. Bd4 {[%emt 0:00:55]} Bd7 {[%emt 0:09:49]} 18. Ne5 {[%emt 0:11:42]} Nxe5 {[%emt 0:04:09]} 19. Bxe5 {[%emt 0:00:21]} Bc6 {[%emt 0:00:02]} 20. Bxc6 {[%emt 0:00:14]} bxc6 {[%emt 0:00:01]} 21. Rac1 {[%emt 0:00:42]} c5 {[%emt 0:00:36]} 22. Rfd1 {[%emt 0:00:24]} Rad8 {[%emt 0:01:31]} 23. Kf1 {[%emt 0:01:14]} Rd5 {[%emt 0:01:02]} 24. Bc3 {[%emt 0:00:50]} Rb8 {[%emt 0:08:56]} 25. e4 {[%emt 0:03:41]} Rdd8 {[%emt 0:00:49]} 26. Ke2 {[%emt 0:00:59]} Rxd1 {[%emt 0:03:49]} 27. Rxd1 {[%emt 0:01:57]} Rb7 {[%emt 0:00:02]} 28. Kd3 {[%emt 0:00:53]} Rd7+ {[%emt 0:00:41]} 29. Kc2 {[%emt 0:00:12]} Rb7 {[%emt 0:00:01]} 30. Rd2 {[%emt 0:00:47]} f6 {[%emt 0:01:15]} 31. Kd3 {[%emt 0:02:11]} Kf8 {[%emt 0:00:02]} 32. Kc4 {[%emt 0:00:09]} Ke8 {[%emt 0:00:04]} 33. Rd3 {[%emt 0:00:26]} Rb8 {[%emt 0:01:03]} 34. b3 {[%emt 0:00:16]} Rb7 {[%emt 0:00:42]} 35. Bd2 {[%emt 0:01:00]} a6 {[%emt 0:00:29]} 36. Be3 {[%emt 0:00:40]} Rc7 {[%emt 0:00:31]} 37. f4 {[%emt 0:00:11]} g6 {[%emt 0:00:41]} 38. g4 {[%emt 0:00:32]} Rc8 {[%emt 0:00:40]} 39. Bf2 {[%emt 0:00:12]} Rc7 {[%emt 0:00:28]} 40. h3 {[%emt 0:00:00]} Rc8 {[%emt 0:00:00]} 41. h4 {[%emt 0:05:31]} Rc6 {[%emt 0:09:13]} 42. h5 {[%emt 0:07:14]} gxh5 {[%emt 0:04:28]} 43. gxh5 {[%emt 0:02:05]} Bd6 {[%emt 0:01:25]} 44. f5 {[%emt 0:00:41]} Ke7 {[%emt 0:01:09]} 45. Bg3 {[%emt 0:01:23]} Bc7 {[%emt 0:01:48]} 46. Bxc7 {[%emt 0:01:05]} Rxc7 {[%emt 0:00:00]} 47. Rg3 {[%emt 0:00:20]} Kd6 {[%emt 0:00:46]} 48. h6 {[%emt 0:01:44]} exf5 {[%emt 0:00:39]} 49. exf5 {[%emt 0:02:29]} Ke5 {[%emt 0:00:14]} 50. Rg7 {[%emt 0:01:05]} Rc8 {[%emt 0:00:48]} 51. Rxh7 {[%emt 0:00:35]} Kxf5 {[%emt 0:00:26]} 52. Rg7 {[%emt 0:00:25]} Re8 {[%emt 0:00:34]} 53. h7 {[%emt 0:00:13]} Re4+ {[%emt 0:00:02]} 54. Kxc5 {[%emt 0:00:15]} Rh4 {[%emt 0:00:02]} 55. b4 {[%emt 0:00:14]} Ke6 {[%emt 0:00:29]} 56. a4 {[%emt 0:00:24]} f5 {[%emt 0:00:24]} 57. b5 {[%emt 0:00:11]} axb5 {[%emt 0:00:25]} 58. axb5 {[%emt 0:00:08]} Kf6 {[%emt 0:01:35]} 59. Ra7 {[%emt 0:03:05]} f4 {[%emt 0:00:15]} 60. b6 {[%emt 0:00:24]} f3 {[%emt 0:00:29]} 61. Ra3 {[%emt 0:00:29]} Rxh7 {[%emt 0:00:27]} 62. Rxf3+ {[%emt 0:00:07]} Ke6 {[%emt 0:00:05]} 63. Kc6 {[%emt 0:00:38]} Rh2 {[%emt 0:00:13]} 64. Re3+ {[%emt 0:00:05]} Kf7 {[%emt 0:00:05]} 65. b7 {[%emt 0:00:20]} Rc2+ {[%emt 0:00:01]} 66. Kd7 {[%emt 0:00:18]} Rb2 {[%emt 0:00:07]} 67. Kc8 {[%emt 0:00:08]} Rc2+ {[%emt 0:00:03]} 68. Kb8 {[%emt 0:00:12]} Rc4 {[%emt 0:00:31]} 69. Re5 {[%emt 0:00:39]} Kf6 {[%emt 0:00:06]} 70. Ra5 {[%emt 0:00:10]} Ke7 {[%emt 0:00:17]} 71. Ka7 Rc7 {[%emt 0:00:15]} 72. Ka8 {[%emt 0:00:06]} 1-0